bitfinex/quotes_ETHUSD_20250924
["timestamp","ask_amount","ask_price","bid_price","bid_amount"]
[1758729076349,0.14289053,4180.8,4180.0,0.7072]
[1758729076505,0.14289053,4180.8,4180.1,0.238]
[1758729076705,0.14289053,4180.8,4180.2,0.4692]
[1758729076927,0.14289053,4180.8,4180.3,0.238]
[1758729076928,0.792,4180.7,4180.3,0.238]
[1758729077129,0.792,4180.7,4180.4,0.7072]
[1758729077322,0.14289053,4180.8,4180.5,0.7072]
[1758729077521,0.14289053,4180.8,4180.6,0.7072]
[1758729077846,0.14289053,4180.8,4180.6,0.4692]
[1758729078048,0.792,4180.7,4179.7,0.4692]
[1758729078247,0.792,4180.7,4179.5,0.7072]
[1758729078248,0.792,4180.4,4179.5,0.7072]
[1758729078449,0.792,4180.2,4179.5,0.7072]
[1758729078606,1.42037429,4180.2,4179.1,0.7272]
[1758729078807,0.792,4180.0,4179.1,0.7272]
[1758729079343,0.792,4180.0,4179.1,0.258]
[1758729079507,1.42037429,4180.0,4179.1,0.02]
[1758729079706,0.792,4179.8,4179.1,0.02]
[1758729080206,0.7195,4180.1,4179.2,0.238]
[1758729080207,0.51156385,4180.1,4179.2,0.238]
[1758729080416,0.792,4180.2,4179.3,0.4692]
[1758729080630,0.792,4180.2,4179.4,0.238]
[1758729080949,0.77126482,4180.8,4179.5,0.4692]
[1758729081159,0.30378793,4180.8,4179.6,0.238]
[1758729081741,0.30378793,4180.8,4179.7,0.4692]
[1758729081945,0.792,4180.7,4179.8,0.238]
[1758729082322,0.792,4180.7,4179.1,0.02]
[1758729082323,0.792,4180.3,4179.1,0.02]
[1758729082539,0.792,4179.8,4179.1,0.02]
[1758729082708,0.792,4179.6,4179.1,0.02]
[1758729083057,3.18453457,4179.7,4179.1,0.02]
[1758729083252,0.792,4179.5,4179.1,0.02]
[1758729083462,2.226,4179.3,4179.1,0.02]
[1758729083667,6.18480245,4179.2,4179.1,0.02]
[1758729083966,8.8498663,4179.2,4179.1,0.02]
[1758729084264,9.47601889,4179.2,4179.1,0.02]
[1758729084478,8.8498663,4179.2,4179.1,0.02]
[1758729084682,11.75898567,4179.2,4179.1,0.02]
[1758729084832,10.4992939,4179.2,4179.1,0.02]
[1758729085033,9.7064939,4179.2,4179.1,0.02]
[1758729085388,8.10569145,4179.2,4179.1,0.02]
[1758729085679,10.4984939,4179.2,4179.1,0.02]
[1758729086247,9.0644939,4179.2,4179.1,0.02]
[1758729086572,9.0644939,4179.2,4178.1,0.02]
[1758729086573,3.18537513,4178.2,4178.1,0.02]
[1758729086773,1.34986533,4178.2,4178.1,0.02]
[1758729086971,0.792,4178.2,4178.1,0.02]
[1758729087133,6.90487513,4178.2,4178.1,0.02]
[1758729087332,7.41643898,4178.2,4178.1,0.02]
[1758729087778,3.0,4178.1,4176.1,0.02]
[1758729087946,3.18594809,4177.2,4176.1,0.02]
[1758729088152,6.85240022,4177.2,4176.1,0.02]
[1758729088347,8.08346407,4177.2,4176.1,0.02]
[1758729088673,7.66696245,4177.2,4176.1,0.02]
[1758729088879,8.45896245,4177.2,4176.1,0.02]
[1758729089175,4.17801598,4177.2,4176.1,0.02]
[1758729089380,0.62604944,4177.5,4177.1,0.70720001]
[1758729089672,0.62604944,4177.8,4177.2,0.7072]
[1758729089871,0.83461267,4178.1,4177.3,0.238]
[1758729089872,0.62604944,4178.1,4177.3,0.238]
[1758729090183,0.97856658,4178.4,4177.3,0.7072]
[1758729090184,0.14395391,4178.4,4177.3,0.7072]
[1758729090480,0.14395391,4178.4,4177.4,3.10103038]
[1758729090679,0.14395391,4178.4,4177.5,0.73113776]
[1758729090863,0.14395391,4178.4,4177.8,2.39359198]
[1758729091090,0.14395391,4178.4,4177.9,0.02393546]
[1758729091292,0.14395391,4178.4,4178.2,2.39334556]
[1758729091491,0.14395391,4178.4,4178.3,3.10051785]
[1758729092012,0.14395391,4178.4,4178.3,0.7072]
[1758729092206,0.14395391,4178.4,4177.1,1e-08]
[1758729092361,0.792,4178.3,4177.2,0.238]
[1758729092560,0.792,4178.1,4177.2,0.238]
[1758729092760,4.62661267,4178.1,4177.8,0.002]
[1758729093005,0.792,4177.9,4177.8,0.002]
[1758729093162,5.5554528,4177.9,4177.8,0.002]
[1758729093363,5.8040528,4177.9,4177.8,0.002]
[1758729093679,9.08841134,4177.9,4177.8,0.002]
[1758729093867,8.30742239,4177.9,4177.8,0.002]
[1758729094847,9.98701142,4177.9,4177.8,0.002]
[1758729094979,9.98701142,4177.9,4177.1,1e-08]
[1758729094980,3.0,4177.8,4177.1,1e-08]
[1758729095162,5.9138754,4177.9,4177.1,1e-08]
[1758729095163,6.18594809,4177.2,4177.1,1e-08]
[1758729095365,9.08879809,4177.2,4177.1,1e-08]
[1758729095605,9.80829809,4177.2,4177.1,1e-08]
[1758729096518,10.1837638,4177.2,4177.1,1e-08]
[1758729096661,7.78981571,4177.2,4177.1,1e-08]
[1758729096866,9.4642638,4177.2,4177.1,1e-08]
[1758729097115,7.07297765,4177.2,4177.1,1e-08]
[1758729097302,7.32157765,4177.2,4177.1,1e-08]
[1758729097469,32.64717958,4177.2,4177.1,1e-08]
[1758729097664,2.39447223,4176.3,4176.1,0.02]
[1758729097966,1.54301107,4176.2,4176.1,0.02]
[1758729098161,2.56489444,4176.2,4176.1,0.4892]
[1758729098396,1.30356385,4176.2,4176.1,0.7272]
[1758729098654,0.51156385,4176.2,4176.1,0.7272]
[1758729099307,0.51156385,4176.3,4176.1,0.7272]
[1758729099490,0.63211837,4176.4,4176.1,2.41457867]
[1758729099491,0.51156385,4176.2,4176.1,2.41457867]
[1758729099823,0.63211837,4177.0,4176.2,2.39452133]
[1758729100030,0.63211837,4177.0,4176.3,0.7072]
[1758729100329,0.63211837,4176.9,4176.4,0.73114406]
[1758729100619,0.63211837,4177.1,4176.5,0.7072]
[1758729100915,0.63211837,4177.2,4177.1,2.39400541]
[1758729101077,0.63211837,4177.2,4176.1,0.02]
[1758729101278,0.6334975,4177.3,4177.1,0.7072]
[1758729101516,0.6334975,4177.3,4176.1,0.02]
[1758729101517,0.84169657,4177.4,4177.2,0.7072]
[1758729101717,0.84169657,4177.4,4176.7,0.2479]
[1758729101718,1.26133059,4177.4,4176.7,0.2479]
[1758729101917,1.26133059,4177.0,4176.1,0.02]
[1758729102075,0.84445202,4176.5,4176.3,0.2479]
[1758729102435,0.84445202,4176.5,4176.2,0.4665]
[1758729102436,0.84445202,4176.5,4176.4,0.7144]
[1758729102632,0.84445202,4176.6,4176.4,0.7144]
[1758729102836,0.84445202,4176.6,4176.5,0.7144]
[1758729103209,1.26133059,4176.8,4176.5,0.7144]
[1758729103409,1.26133059,4176.8,4176.6,0.7144]
[1758729103647,1.26133059,4176.8,4176.7,0.7144]
[1758729104514,2.89148629,4178.0,4176.7,0.7144]
[1758729104515,1.26133059,4177.0,4176.7,0.7144]
[1758729104712,1.26133059,4177.1,4176.8,0.7144]
[1758729104946,1.26133059,4177.1,4176.2,2.39447079]
[1758729104947,0.84512785,4177.1,4176.9,2.41806124]
[1758729105122,0.14395391,4178.4,4176.9,2.41806124]
[1758729105123,0.63392875,4177.2,4176.9,2.39411919]
[1758729105323,0.63392875,4177.2,4177.1,2.39400541]
[1758729105559,0.63392875,4177.4,4177.3,2.39389079]
[1758729105742,0.63392875,4177.7,4177.5,2.39377618]
[1758729105942,0.63392875,4178.1,4178.0,2.3934897]
[1758729106185,0.63392875,4178.1,4178.0,3.1078897]
[1758729106358,0.84512785,4178.4,4178.0,0.7144]
[1758729106560,0.63463545,4178.2,4178.1,3.13171632]
[1758729106859,0.63463545,4178.3,4178.2,2.39337513]
[1758729107156,0.63463545,4178.3,4178.2,0.7144]
[1758729107357,0.84512785,4178.5,4178.2,0.7144]
[1758729107548,0.63500994,4178.3,4178.2,2.39337292]
[1758729108123,0.1192,4178.4,4178.2,2.39337292]
[1758729108124,0.75420994,4178.4,4178.3,2.39331785]
[1758729108351,0.1192,4178.4,4178.3,3.10771785]
[1758729108555,0.63500994,4178.6,4178.5,2.3932033]
[1758729109473,0.02,4178.9,4178.8,2.4169618]
[1758729109634,0.02,4178.9,4178.8,3.22663149]
[1758729110153,0.02,4178.9,4178.8,6.22663149]
[1758729110490,1e-08,4178.9,4178.8,6.22663149]
[1758729111079,1e-08,4178.9,4178.8,6.10743149]
[1758729112088,0.50748537,4179.6,4179.5,2.39263069]
[1758729112250,0.50748537,4179.6,4179.5,3.10703069]
[1758729113459,0.02,4179.9,4179.8,2.39245896]
[1758729113982,0.02,4179.9,4179.8,3.10685896]
[1758729114185,0.02,4179.9,4179.8,2.64035896]
[1758729114492,0.02,4179.9,4179.8,3.10685896]
[1758729114990,0.02,4179.9,4179.8,3.13078354]
[1758729115281,0.02,4179.9,4179.8,3.10685896]
[1758729115483,0.02,4179.9,4179.8,3.13078354]
[1758729116173,0.02,4179.9,4179.8,3.10685896]
[1758729117096,0.02,4179.9,4179.8,0.2479]
[1758729117392,0.02,4179.9,4179.4,2.39268794]
[1758729117686,0.02,4179.9,4179.6,2.39255527]
[1758729117852,0.02,4179.9,4179.5,2.64052623]
[1758729118052,0.02,4179.9,4179.5,0.2479]
[1758729118488,0.02,4179.9,4179.6,0.73832573]
[1758729118789,0.02,4179.9,4179.8,2.39245896]
[1758729119007,0.02,4179.9,4179.7,0.2479]
[1758729119295,0.02,4179.9,4179.8,2.39245896]
[1758729119451,0.02,4179.9,4179.3,0.2479]
[1758729119907,0.02,4179.9,4179.3,2.39272365]
[1758729120056,0.02,4179.9,4179.5,2.39262624]
[1758729120254,0.02,4179.9,4178.9,0.2362]
[1758729120488,0.02,4179.9,4179.5,2.39262471]
[1758729120673,0.02,4179.9,4179.3,2.392688]
[1758729120885,0.02,4179.9,4178.9,0.2362]
[1758729121068,0.1192,4179.5,4179.0,2.39291696]
[1758729121261,0.1192,4179.5,4178.8,0.1192]
[1758729121465,0.02,4179.9,4179.1,2.39284801]
[1758729121466,0.2356,4179.8,4179.1,2.39284801]
[1758729121702,0.1192,4179.2,4179.1,2.39284801]
[1758729122017,0.02,4179.9,4179.8,2.39245896]
[1758729122151,0.1392,4179.9,4179.8,2.65258354]
[1758729122591,0.1392,4179.9,4179.8,2.39245896]
[1758729122795,0.1392,4179.9,4179.3,0.2362]
[1758729122951,0.1392,4179.9,4179.1,0.1192]
[1758729123155,0.1192,4179.6,4179.3,2.39272692]
[1758729123398,0.1192,4179.4,4179.2,2.39279413]
[1758729123700,0.1192,4179.4,4178.7,0.3554]
[1758729123999,0.1192,4179.4,4178.7,2.51224654]
[1758729124202,0.1192,4179.4,4178.7,0.1192]
[1758729124357,0.6959,4179.3,4177.5,0.6965]
[1758729124560,0.2356,4179.2,4177.6,0.6981]
[1758729124853,0.2356,4179.2,4177.3,2.39389079]
[1758729124854,0.2356,4179.6,4178.4,2.39325166]
[1758729125067,0.6959,4179.5,4177.7,0.2362]
[1758729125652,0.82899099,4179.5,4178.6,2.39309835]
[1758729125959,0.82899099,4179.5,4178.5,0.02393203]
[1758729126168,0.82899099,4179.5,4178.5,2.41712913]
[1758729126375,0.82899099,4179.5,4178.7,2.39304247]
[1758729126557,0.82899099,4179.5,4178.8,2.41694602]
[1758729126770,0.82899099,4179.5,4178.8,0.02393031]
[1758729126955,0.82899099,4179.5,4178.6,2.39314223]
[1758729127280,0.82899099,4179.5,4178.7,2.41701289]
[1758729127505,0.82899099,4179.5,4178.8,2.39302241]
[1758729127863,0.82899099,4179.5,4178.7,0.02393088]
[1758729128191,0.82899099,4179.5,4178.1,0.2362]
[1758729128192,0.82899099,4179.5,4178.4,2.39322366]
[1758729128362,0.2356,4179.4,4178.3,2.3933129]
[1758729128696,0.59339099,4179.5,4178.0,2.39344243]
[1758729128697,0.6959,4179.3,4178.0,2.39344243]
[1758729128902,0.2356,4179.2,4178.0,2.39344243]
[1758729129102,0.2356,4179.2,4177.8,2.39360116]
[1758729129103,0.2356,4179.1,4178.1,2.39342603]
[1758729129280,0.2356,4179.1,4177.7,0.2362]
[1758729129781,0.2356,4179.1,4177.8,2.39354706]
[1758729129982,0.2356,4179.1,4178.1,2.39342937]
[1758729130212,0.2356,4179.1,4178.0,2.39347978]
[1758729130507,0.2356,4179.1,4178.1,2.39341093]
[1758729130725,0.2356,4179.1,4177.9,2.85543896]
[1758729130919,0.6959,4179.0,4177.4,0.4619]
[1758729131069,0.2356,4178.9,4177.4,0.4619]
[1758729131271,1.00478283,4178.8,4177.3,0.2362]
[1758729131470,1.00478283,4178.8,4177.4,2.39383348]
[1758729131703,0.6979,4178.7,4177.3,0.2362]
[1758729132108,0.6979,4178.7,4177.4,2.39382121]
[1758729132310,0.2401,4178.6,4177.5,2.39377306]
[1758729132609,0.2401,4178.6,4177.8,2.39358964]
[1758729132806,0.2401,4178.6,4177.9,2.39354508]
[1758729132985,0.2401,4178.6,4177.6,0.26299731]
[1758729133186,0.2401,4178.6,4177.6,2.39367199]
[1758729133570,0.2401,4178.6,4177.6,2.39370612]
[1758729134076,0.87510994,4179.0,4178.2,2.39336947]
[1758729134276,0.1192,4178.3,4177.6,0.7992]
[1758729134475,0.1192,4178.3,4178.0,2.39344734]
[1758729134725,0.1192,4178.3,4178.0,0.23934473]
[1758729135033,0.1192,4178.3,4178.0,2.63282942]
[1758729135315,0.63500994,4178.8,4177.1,0.02]
[1758729135474,0.6979,4178.2,4177.1,0.02]
[1758729135669,1.33290994,4178.2,4177.1,0.02]
[1758729135874,0.63500994,4178.0,4177.1,0.02]
[1758729136073,0.90344214,4178.0,4177.1,0.02]
[1758729136335,0.6979,4177.9,4177.1,0.02]
[1758729136922,0.63500994,4177.6,4177.1,0.02]
[1758729137076,0.63500994,4177.5,4177.1,0.02]
[1758729137278,3.18594809,4177.2,4177.1,0.02]
[1758729137477,4.3835052,4177.2,4177.1,0.02]
[1758729137678,2.68745711,4177.2,4177.1,0.02]
[1758729137911,5.0814052,4177.2,4177.1,0.02]
[1758729138223,3.53608814,4177.2,4177.1,0.02]
[1758729138422,3.02980392,4177.2,4177.1,0.02]
[1758729138780,4.63175201,4177.2,4177.1,0.02]
[1758729139109,7.57432098,4177.2,4177.1,0.02]
[1758729139310,8.92823334,4177.2,4177.1,0.02]
[1758729139679,8.0806052,4177.2,4177.1,0.02]
[1758729140333,5.68665711,4177.2,4177.1,0.02]
[1758729140539,8.0806052,4177.2,4177.1,0.02]
[1758729141647,8.19847715,4177.2,4177.1,0.02]
[1758729141852,3.18640666,4176.4,4176.1,0.02]
[1758729142051,6.18640666,4176.4,4176.1,0.02]
[1758729142253,7.39059088,4176.4,4176.1,0.02]
[1758729142468,4.99618422,4176.4,4176.1,0.02]
[1758729142630,7.39059088,4176.4,4176.1,0.02]
[1758729142949,6.05929141,4176.4,4176.1,0.02]
[1758729143136,6.69313825,4176.4,4176.1,0.02]
[1758729143750,9.08754491,4176.4,4176.1,0.02]
[1758729144178,8.82919556,4176.4,4176.1,0.02]
[1758729144379,6.4347889,4176.4,4176.1,0.02]
[1758729144700,9.4630424,4176.4,4176.1,0.02]
[1758729145102,6.4347889,4176.4,4176.1,0.02]
[1758729145407,5.9769889,4176.4,4176.1,0.02]
[1758729146608,6.4347889,4176.4,4176.1,0.02]
[1758729146964,8.82919556,4176.4,4176.1,0.02]
[1758729147207,9.4630424,4176.4,4176.1,0.02]
[1758729147510,7.06863574,4176.4,4176.1,0.02]
[1758729147912,9.4630424,4176.4,4176.1,0.02]
[1758729148215,6.37073574,4176.4,4176.1,0.02]
[1758729148367,6.05929141,4176.4,4176.1,0.02]
[1758729148563,9.08754491,4176.4,4176.1,0.02]
[1758729149003,6.69313825,4176.4,4176.1,0.02]
[1758729149214,9.08754491,4176.4,4176.1,0.02]
[1758729149563,9.72298153,4176.4,4176.1,0.02]
[1758729149770,8.45369807,4176.4,4176.1,0.02]
[1758729150665,9.72201718,4176.4,4176.1,0.02]
[1758729150988,2.226,4175.9,4170.6,3.49374515]
[1758729151164,3.792,4175.1,4170.6,0.09604821]
[1758729151500,27.00358962,4174.2,4172.7,0.2459]
[1758729151701,27.50987384,4174.2,4172.7,0.2459]
[1758729152007,28.20777384,4174.2,4172.3,0.2459]
[1758729152215,7.39185285,4174.2,4172.7,0.2459]
[1758729152417,5.97492833,4174.2,4170.7,2.39764488]
[1758729152601,6.12086436,4174.2,4173.2,0.25890004]
[1758729152765,4.29828422,4174.2,4173.2,0.25890004]
[1758729152962,3.792,4174.2,4173.2,0.25890004]
[1758729153401,1.35012025,4174.4,4173.2,0.25890004]
[1758729153402,1.35012025,4174.4,4173.8,0.2459]
[1758729153618,0.63273586,4174.4,4174.1,0.7]
[1758729153818,0.63273586,4175.0,4174.2,0.68]
[1758729154122,0.78039305,4175.0,4174.2,0.68]
[1758729154297,0.63273586,4175.3,4174.3,2.64149059]
[1758729154611,0.63273586,4175.4,4174.4,0.68]
[1758729154794,0.63273586,4175.5,4174.5,0.68]
[1758729154966,0.63273586,4175.5,4174.6,0.2459]
[1758729155503,0.63273586,4175.5,4174.7,0.4341]
[1758729155676,0.63273586,4175.5,4174.8,0.2459]
[1758729155878,0.63273586,4175.4,4174.3,0.4341]
[1758729156081,0.63273586,4175.3,4174.3,0.68]
[1758729156403,0.63273586,4175.4,4174.4,0.68]
[1758729156606,0.63273586,4175.7,4174.8,2.39530604]
[1758729156782,0.63273586,4176.0,4174.9,0.68]
[1758729156987,2.3948163,4175.7,4174.9,0.2459]
[1758729157183,0.792,4175.4,4174.4,0.4341]
[1758729157499,1.66483586,4175.4,4174.1,0.02]
[1758729157699,3.02793739,4175.1,4174.1,0.02]
[1758729158071,0.63273586,4175.0,4174.2,0.68]
[1758729158270,0.63273586,4175.1,4174.3,0.68]
[1758729158470,0.63273586,4175.5,4174.4,0.68]
[1758729158771,0.63273586,4176.1,4175.1,2.39515006]
[1758729158973,0.63273586,4176.1,4175.2,0.68]
[1758729159266,3.47823336,4176.5,4174.1,0.02]
[1758729159267,0.63273586,4176.5,4175.3,0.70395037]
[1758729159577,0.1192,4175.9,4175.8,2.39469834]
[1758729159903,0.1192,4175.9,4175.8,0.68]
[1758729160202,0.1192,4175.9,4175.8,3.0747507]
[1758729160499,0.1192,4175.9,4175.8,0.68]
[1758729160806,0.1192,4175.9,4175.8,3.0747507]
[1758729161204,0.1192,4175.9,4175.8,0.68]
[1758729161866,0.62548422,4175.9,4175.4,0.2498]
[1758729162069,0.50628422,4175.8,4175.5,0.7045]
[1758729162271,0.50628422,4175.7,4175.6,0.2498]
[1758729162479,0.50628422,4175.7,4175.6,3.0993654]
[1758729162681,0.1192,4175.8,4175.7,2.39480805]
[1758729162882,0.50628422,4176.0,4175.8,2.3947507]
[1758729163212,0.50628422,4175.9,4175.8,3.0992507]
[1758729163507,0.50628422,4176.0,4175.8,0.7045]
[1758729163694,0.50628422,4175.9,4175.8,0.2498]
[1758729164082,0.1192,4175.8,4175.5,0.4547]
[1758729164287,1.14346264,4175.7,4175.6,0.7045]
[1758729164508,1.14346264,4175.7,4175.2,0.2498]
[1758729164690,1.26275238,4175.6,4175.2,0.2498]
[1758729164890,0.50628422,4175.5,4175.3,3.09952202]
[1758729165108,0.50628422,4175.4,4175.3,2.39502202]
[1758729165715,0.50628422,4175.4,4175.3,3.09952202]
[1758729166080,0.50628422,4175.4,4175.3,3.21872202]
[1758729166610,0.50548422,4175.4,4175.3,3.21872202]
[1758729167523,0.63726816,4176.0,4175.9,2.39469335]
[1758729167712,0.63726816,4176.0,4175.9,3.09919335]
[1758729167915,0.63726816,4176.2,4176.1,2.39457867]
[1758729168085,0.63726816,4176.5,4176.2,2.39452133]
[1758729168284,0.84383603,4176.7,4176.2,2.39452133]
[1758729168285,0.63726816,4176.8,4176.7,2.39423468]
[1758729168509,0.63726816,4176.8,4176.7,3.09873468]
[1758729169207,0.65726816,4176.9,4176.8,2.39417736]
[1758729169388,0.02,4176.9,4176.8,3.09867736]
[1758729170311,1.28568997,4177.9,4176.8,3.09867736]
[1758729170312,1.69020902,4178.5,4178.4,2.39326057]
[1758729170488,1.69020902,4179.5,4178.4,0.7045]
[1758729170689,0.234,4179.6,4178.5,0.7045]
[1758729170990,0.1192,4179.2,4178.8,2.39303149]
[1758729171399,0.1192,4179.2,4178.8,2.64283149]
[1758729171999,0.1192,4179.2,4178.8,3.1214618]
[1758729172187,0.1192,4179.4,4178.8,3.1214618]
[1758729172723,0.1192,4179.4,4178.8,3.09753149]
[1758729173104,0.02,4180.9,4178.8,3.09753149]
[1758729173105,0.234,4180.5,4178.8,3.09753149]
[1758729173293,0.1392,4179.9,4178.8,3.09753149]
[1758729173690,0.1392,4179.9,4178.8,3.1214618]
[1758729173994,0.02,4179.9,4178.8,0.84763031]
[1758729174339,0.02,4179.9,4179.8,2.51165896]
[1758729174633,0.02,4179.9,4179.1,2.3928597]
[1758729174926,0.6987,4179.8,4178.9,0.2498]
[1758729175227,0.6987,4179.8,4178.9,2.39296809]
[1758729175530,0.6987,4179.8,4178.8,2.39302099]
[1758729175736,0.6987,4179.8,4178.9,2.39296931]
[1758729175931,0.6987,4179.8,4178.7,2.39308875]
[1758729176140,0.6987,4179.8,4178.6,0.2498]
[1758729176434,0.6987,4179.8,4178.7,2.39308875]
[1758729176731,0.6987,4179.7,4178.3,2.3932676]
[1758729176933,0.6987,4179.6,4178.2,2.39332093]
[1758729177135,0.6987,4179.5,4178.0,3.09798948]
[1758729177438,0.234,4179.4,4178.4,2.39325795]
[1758729178152,0.234,4179.7,4178.5,2.6429873]
[1758729178358,0.234,4179.7,4178.6,2.39314602]
[1758729178514,0.234,4179.7,4178.5,0.2498]
[1758729178723,0.234,4179.7,4178.7,2.39303393]
[1758729178918,2.39251093,4179.8,4178.2,2.39337415]
[1758729179265,0.6987,4179.6,4178.5,2.39319992]
[1758729179754,0.6987,4179.6,4178.4,2.39324681]
[1758729180056,0.4647,4179.6,4178.5,2.39319609]
[1758729180220,0.23,4179.5,4178.1,2.39338674]
[1758729180421,0.23,4179.5,4178.1,2.39343242]
[1758729180632,0.53872735,4179.4,4178.0,0.2439]
[1758729180832,0.23,4179.4,4178.0,0.2439]
[1758729181034,0.23,4179.4,4178.2,2.39336622]
[1758729181230,0.23,4179.4,4178.0,2.63736402]
[1758729181435,0.6712,4179.3,4177.6,0.2439]
[1758729181632,2.39297032,4179.0,4177.6,0.2439]
[1758729181860,1.14977728,4178.9,4177.6,0.2439]
[1758729182864,0.4412,4179.3,4177.8,2.39359505]
[1758729183027,0.23,4179.7,4178.6,2.39314393]
[1758729183228,0.23,4179.7,4178.7,0.02393088]
[1758729183468,0.02,4179.9,4178.9,2.39297422]
[1758729183762,0.02,4179.9,4179.1,2.39285582]
[1758729183956,0.02,4179.9,4179.2,0.02392802]
[1758729184260,0.02,4179.9,4178.8,0.2439]
[1758729184560,0.02,4179.9,4179.4,2.39263085]
[1758729184764,0.1192,4179.5,4179.4,2.83033085]
[1758729184927,0.02,4179.9,4179.8,2.39245896]
[1758729185125,0.1392,4179.9,4179.7,2.39250449]
[1758729185329,0.1392,4179.9,4179.4,0.2439]
[1758729185530,0.6712,4179.8,4178.8,0.2439]
[1758729185736,0.1192,4179.4,4179.1,2.39285722]
[1758729186051,0.1192,4179.4,4179.2,0.6816]
[1758729186430,0.1192,4179.4,4179.3,0.6816]
[1758729186635,0.02,4179.9,4179.0,0.2439]
[1758729186877,0.02,4179.9,4179.1,2.39281941]
[1758729187079,0.02,4179.9,4179.2,2.39277688]
[1758729187379,0.02,4179.9,4179.5,2.39258884]
[1758729187548,0.02,4179.9,4179.3,2.39273336]
[1758729187747,0.02,4179.9,4179.4,2.39264296]
[1758729188136,0.25,4179.9,4179.4,2.39264296]
[1758729188534,0.251,4179.9,4179.0,0.6816]
[1758729188739,0.251,4179.9,4176.2,2.3944656]
[1758729188740,0.251,4179.9,4178.5,0.6816]
[1758729189165,0.251,4179.9,4179.0,2.39290326]
[1758729189340,0.251,4179.9,4178.5,0.6816]
[1758729189536,0.6712,4179.8,4178.5,3.07479374]
[1758729189772,0.23,4179.7,4178.8,2.39301342]
[1758729189951,0.4412,4179.8,4178.6,2.39309771]
[1758729189952,0.23,4179.6,4178.6,2.39309771]
[1758729190161,0.6712,4179.5,4178.5,2.39319457]
[1758729190376,0.4412,4179.5,4178.1,0.2439]
[1758729190701,0.23,4179.4,4178.1,0.2439]
[1758729190905,0.4412,4179.3,4178.5,2.39314692]
[1758729191053,0.23,4179.4,4178.2,0.4377]
[1758729191361,0.23,4179.4,4178.5,2.39319607]
[1758729191563,0.23,4179.4,4178.5,2.39319646]
[1758729191748,0.23,4179.4,4178.4,2.39324946]
[1758729191953,0.23,4179.4,4178.4,2.39326057]
[1758729192155,0.23,4179.4,4178.5,2.39320212]
[1758729192477,0.23,4179.4,4178.3,2.63721317]
[1758729192674,0.23,4179.4,4178.3,2.63717183]
[1758729192884,0.23,4179.4,4178.3,2.63721324]
[1758729193081,0.23,4179.4,4178.5,2.39319399]
[1758729193283,0.50664554,4179.8,4178.6,0.02393146]
[1758729193471,0.257,4179.9,4178.8,2.39301157]
[1758729193688,0.12099455,4179.8,4178.7,0.674]
[1758729194001,0.0202,4179.9,4178.8,0.69793031]
[1758729194168,0.0202,4179.9,4179.4,2.39264678]
[1758729194506,0.0202,4179.9,4179.3,2.39272598]
[1758729194653,0.0202,4179.9,4178.4,0.2264]
[1758729194856,0.0202,4179.9,4178.6,2.39311929]
[1758729194857,0.236,4179.8,4178.6,2.39311929]
[1758729195053,0.4463,4179.7,4178.4,0.2264]
[1758729195355,0.35691455,4179.6,4178.6,2.39309952]
[1758729195567,0.35691455,4179.6,4178.4,0.2264]
[1758729195788,0.12091455,4179.6,4178.5,0.4476]
[1758729195992,0.0202,4179.9,4179.3,2.39274392]
[1758729196178,0.50664554,4179.8,4179.4,0.674]
[1758729196379,0.50664554,4179.8,4179.5,0.674]
[1758729196614,0.1192,4179.6,4179.5,0.4476]
[1758729196816,0.1192,4179.6,4179.5,2.84023069]
[1758729197323,0.52684554,4179.9,4179.6,2.39257345]
[1758729197529,0.1394,4179.9,4179.7,3.06647764]
[1758729197729,0.1394,4179.9,4179.8,3.09038354]
[1758729198094,0.1394,4179.9,4179.8,3.06645896]
[1758729198296,0.0202,4179.9,4179.8,3.06645896]
[1758729198533,0.0202,4179.9,4179.8,3.09038354]
[1758729199130,0.0202,4179.9,4179.8,3.18565896]
[1758729199336,0.0202,4179.9,4179.8,3.20958354]
[1758729199934,1e-08,4179.9,4179.8,6.18565896]
[1758729201306,0.001,4180.4,4179.9,6.18440173]
[1758729201549,0.001,4180.4,4180.3,30.7600666]
[1758729202060,0.001,4180.4,4180.3,31.5532666]
[1758729204955,0.02,4180.9,4180.8,2.39188672]
[1758729205155,1.09016191,4182.5,4181.1,25.36789379]
[1758729205156,0.50664554,4182.4,4181.1,25.36789379]
[1758729205381,0.236,4182.5,4182.0,2.39119073]
[1758729205542,0.236,4182.5,4182.1,2.39113725]
[1758729205745,0.50664554,4182.6,4182.3,2.39102885]
[1758729206069,0.236,4182.8,4182.7,2.3908002]
[1758729206272,0.02,4182.9,4182.6,2.39084234]
[1758729206454,0.02,4182.9,4182.8,2.39074304]
[1758729206857,0.02,4182.9,4182.1,2.3911432]
[1758729207048,0.02,4182.9,4182.4,0.2264]
[1758729207735,0.02,4182.9,4182.5,0.674]
[1758729208069,0.02,4182.9,4181.7,25.36789379]
[1758729208070,0.02,4182.9,4181.9,0.2264]
[1758729208271,0.02,4182.9,4182.5,2.39087119]
[1758729208479,0.02,4182.9,4181.7,25.36789379]
[1758729208480,0.6823,4182.8,4182.3,2.39098907]
[1758729208772,0.6823,4182.7,4181.0,0.2264]
[1758729208954,0.6823,4182.7,4181.9,2.39121047]
[1758729209163,0.236,4182.6,4182.0,0.023912]
[1758729209338,0.236,4182.6,4182.1,2.39113741]
[1758729209539,0.4463,4182.6,4182.1,2.39113741]
[1758729209739,0.02,4182.9,4180.7,3.0]
[1758729209943,0.02,4182.9,4181.2,0.2264]
[1758729209944,0.6823,4182.8,4181.2,0.2264]
[1758729210189,0.6823,4182.8,4181.2,3.2264]
[1758729210476,0.6823,4182.7,4181.3,2.39160069]
[1758729210679,0.001,4181.3,4180.5,0.2264]
[1758729210885,0.001,4181.3,4181.2,2.39165789]
[1758729212489,0.001,4181.3,4181.2,28.45746825]